[Event "14th BPB Limburg Open 2022"]
[Site "Maastricht"]
[Date "2022.06.03"]
[Round "1.7"]
[White "Sankalp Gupta"]
[Black "Dorst, Johannes"]
[Result "1/2-1/2"]
[ECO "E61"]
[WhiteElo "2505"]
[BlackElo "2227"]
[Annotator "TA"]
[PlyCount "68"]
[EventDate "2022.06.03"]
[EventType "swiss"]
[EventCountry "NED"]
[SourceTitle "playchess.com"]
[Source "ChessBase"]
[SourceQuality "1"]
[TimeControl "7200+15"]

{[%evp 10,68,27,17,15,25,14,15,17,14,16,27,28,43,31,-41,-33,-30,-25,-54,-36,-106,-101,-116,-114,-445,-409,-583,-578,-560,0,-645,-433,-328,0,0,0,0,158,-177,0,0,0,0,0,0,0,0,484,0,0,0,0,0,0,0,0,0,0,0,0]} 1. Nf3 {[%emt 0:00:48]} Nf6 {[%emt 0:00:15]} 2. e3 {[%emt 0:02:19]} c5 {[%emt 0:02:04]} 3. c4 {[%emt 0:02:08]} g6 {[%emt 0:01:09]} 4. d4 {[%emt 0:01:20]} Bg7 {[%emt 0:01:35]} 5. Nc3 {[%emt 0:00:19]} O-O {[%emt 0:01:10]} 6. d5 {[%emt 0:04:41]} e6 {[%emt 0:04:40] E61: King's Indian: Early deviations for White, including Smyslov System.} 7. Bd3 {[%emt 0:03:54]} exd5 {[%emt 0:00:20]} 8. cxd5 {[%emt 0:00:03]} d6 {[%emt 0:02:05]} 9. h3 {[%emt 0:00:16] was the old line (9.0-0).} Na6 {[%emt 0:08:29]} 10. O-O {[%emt 0:04:04]} Nc7 {[%emt 0:00:32]} 11. e4 {[%emt 0:00:15]} b5 {[%emt 0:05:51]} 12. Nxb5 {[%emt 0:00:54]} (12. a3 $14) 12... Nxb5 $15 {[%emt 0:00:07]} 13. Bxb5 {[%emt 0:00:04]} Nxe4 {[%emt 0:01:22]} 14. Qa4 {[%emt 0:04:15] [#]} Rb8 $146 {[%emt 0:02:33][%cal Od8b6]} ({Predecessor:} 14... Nf6 15. Bc6 Bd7 16. Bf4 Nxd5 17. Bg5 Bxc6 18. Qxc6 Nb4 19. Qa4 Qe8 20. Qb3 Qd7 {½-½ (30) Schwierskott,M (2234)-Steiger,W (2280) Germany 2012}) 15. Bc6 {[%emt 0:00:36]} ({White should play} 15. Re1 $15 f5 16. Re2) 15... Rb4 $17 {[%emt 0:04:48]} 16. Qxa7 {[%emt 0:00:29]} f5 $1 {[%emt 0:08:41][%cal Bf7f5,Bf5f4][%mdl 32]} (16... Bxb2 $6 17. Rb1 Bxc1 18. Rxb4 (18. Rfxc1 Rxb1 19. Rxb1 Qf6 $11) 18... cxb4 19. Rxc1 $11) 17. a3 $2 {[%emt 0:32:27][%mdl 8192]} (17. Re1 $17 {is tougher.}) 17... Rb3 $19 {[%emt 0:04:12][%cal Ob3f3]} 18. Qa4 {[%emt 0:27:12] [#]} (18. Ne1 {was necessary.} Qb6 19. Qxb6 Rxb6 20. Nd3) 18... Rxf3 $1 {[%emt 0:05:38][%mdl 512]} 19. gxf3 {[%emt 0:00:57]} Ng5 {[%emt 0:02:19]} (19... Qh4 $19 20. Qd1 (20. fxe4 Qxh3 21. Bf4 Qg4+ 22. Bg3 Bd4 $19) 20... Ng3) 20. Kg2 $2 {[%emt 0:04:41][%mdl 8192]} (20. Bxg5 $11 Qxg5+ 21. Kh1) 20... f4 $1 {[%emt 0:01:14]} 21. Rh1 {[%emt 0:00:19]} Nxh3 {[%emt 0:09:55]} (21... Bd4 $19 22. Bd2 (22. h4 $2 Bh3+ 23. Rxh3 Nxh3 $19) 22... Nxh3) 22. Rxh3 $11 {[%emt 0:01:43]} Bxh3+ {[%emt 0:01:41]} 23. Kxh3 {[%emt 0:00:02]} Qg5 {[%emt 0:02:02] [#]} ({Black should try} 23... Bd4 $1 $11 24. Bd2 Bxf2) 24. Qd1 $2 {[%emt 0:05:46] [#]} (24. Bd2 $1 $16 {[%cal Rd2c3] is forced if you want to stay better.}) 24... Bd4 {[%emt 0:16:54]} (24... Qe7 $1 $19 {Hoping for ...Rf5.} 25. Kg2 (25. Qg1 $2 Rf5 $19) 25... Rf5) 25. Qe1 $1 {[%emt 0:00:02]} Rf5 {[%emt 0:01:05]} 26. Bd7 $1 {[%emt 0:00:01]} Re5 {[%emt 0:14:14] ( -> ...Qh5+)} 27. Qf1 {[%emt 0:01:43]} Qh5+ {[%emt 0:07:02]} 28. Kg2 {[%emt 0:00:02]} Rg5+ {[%emt 0:04:09]} 29. Bg4 {[%emt 0:00:02]} Rxg4+ {[%emt 0:00:09] The position is equal.} 30. fxg4 {[%emt 0:00:04]} Qxg4+ {[%emt 0:00:06]} 31. Kh1 $1 {[%emt 0:00:16]} Qh4+ {[%emt 0:00:54]} 32. Kg2 {[%emt 0:00:26] aiming for Qe2.} Qg4+ {[%emt 0:00:41]} 33. Kh1 $1 {[%emt 0:00:02]} Qh4+ {[%emt 0:01:06]} 34. Kg2 {[%emt 0:00:05] Strongly threatening Qe2.} Qg4+ $1 {[%emt 0:04:43] Quite a comeback for White.  Weighted Error Value: White=0.73/Black=0.40} 1/2-1/2

[Event "14th BPB Limburg Open 2022"]
[Site "Maastricht"]
[Date "2022.06.03"]
[Round "1.8"]
[White "Pham, Khoi"]
[Black "Zwirs, Nico"]
[Result "0-1"]
[ECO "B60"]
[WhiteElo "2291"]
[BlackElo "2468"]
[Annotator "TA"]
[PlyCount "106"]
[EventDate "2022.06.03"]
[EventType "swiss"]
[EventCountry "NED"]
[SourceTitle "playchess.com"]
[Source "ChessBase"]
[SourceQuality "1"]
[TimeControl "7200+15"]

{[%evp 13,106,45,44,34,35,30,37,24,46,47,68,56,86,65,88,76,75,40,63,62,57,55,90,0,44,29,35,22,98,83,144,117,210,220,229,235,226,220,220,154,204,140,173,168,170,167,187,166,231,177,172,181,177,173,174,166,174,169,154,145,208,214,209,197,193,145,295,292,287,230,226,204,360,225,221,-258,-251,-852,-855,-847,-658,-837,-827,-732,-596,-580,-580,-29976,-29977,-29976,-29972,-29963,-29960,-29983,-29984]} 1. e4 {[%emt 0:00:03]} c5 {[%emt 0:00:39]} 2. Nf3 {[%emt 0:00:06]} d6 {[%emt 0:00:40]} 3. d4 {[%emt 0:00:11]} cxd4 {[%emt 0:00:02]} 4. Nxd4 {[%emt 0:00:06]} Nf6 {[%emt 0:00:09]} 5. Nc3 {[%emt 0:00:06]} a6 {[%emt 2:00:00]} 6. Bg5 {[%emt 0:00:22]} Nc6 {[%emt 0:00:00]} 7. Bxf6 {[%emt 0:08:51]} gxf6 {[%emt 0:00:00]} 8. Nxc6 {[%emt 0:08:55] B60: Sicilian: Richter-Rauzer: Unusual Black 6th moves and 6...Bd7 without 7 Qd2.} bxc6 {[%emt 0:00:00]} 9. Bc4 {[%emt 0:00:55]} Qa5 {[%emt 0:00:00] Prevents Qh5.} 10. Qe2 {[%emt 0:12:41] White is slightly better.} h5 {[%emt 0:00:00]} 11. Bb3 {[%emt 0:08:40] [#]} Bd7 $146 {[%emt 0:00:00]} ({Predecessor:} 11... e6 12. O-O-O Be7 13. f4 Bd7 14. Rhe1 h4 15. Kb1 f5 16. Qd3 fxe4 17. Qxe4 Rb8 {0-1 (50) Zakhartsov,V (2023)-Moskwinski,T (2161) Warsaw 2008}) 12. O-O-O {[%emt 0:03:25]} h4 {[%emt 0:00:00]} 13. f4 {[%emt 0:05:11]} Rb8 {[%emt 0:00:00]} 14. Qc4 {[%emt 0:18:04]} e6 {[%emt 0:00:00]} 15. Qd4 {[%emt 0:04:25]} Be7 {[%emt 0:00:00]} 16. Rhe1 {[%emt 0:07:07]} Qb6 {[%emt 0:00:00]} 17. Qd3 {[%emt 0:04:11]} Rg8 {[%emt 0:00:00]} 18. Qh3 {[%emt 0:10:31]} (18. Re2 $16) 18... Qf2 {[%emt 0:00:00][%csl LRf4,LRg2]} (18... c5 $5 {[%cal Rc5c4]}) 19. Rf1 {[%emt 0:01:18]} Qxg2 {[%emt 0:00:00]} 20. Qe3 {[%emt 0:02:15]} Qxh2 {[%emt 0:00:00] [#]} (20... Kf8 $1 $11 {remains equal.}) 21. Ne2 $1 $16 {[%emt 0:00:08] Strongly threatening Rh1.} Rg2 {[%emt 0:00:00]} (21... Bd8 $142) 22. Bc4 {[%emt 0:00:59] Threatens to win with Rh1.} d5 {[%emt 0:00:00]} (22... Rg3 $16 {keeps fighting.} 23. Qa7 Rd8) 23. Rh1 $18 {[%emt 0:01:24][%mdl 64] Skewer} Rxe2 {[%emt 0:00:00]} 24. Bxe2 {[%emt 0:00:08]} Qg3 {[%emt 0:00:00]} 25. Qxg3 {[%emt 0:03:58]} hxg3 {[%emt 0:00:00] [#]} 26. Rh8+ $1 {[%emt 0:22:45][%mdl 64] Skewer} (26. Bxa6 Bd6 27. Rh4 Ke7 28. exd5 cxd5 $17) 26... Bf8 {[%emt 0:05:15]} 27. exd5 {[%emt 0:00:00] Black must now prevent d6.} (27. Bxa6 Ra8 28. Bd3 Rxa2 $14) 27... cxd5 {[%emt 0:00:00]} 28. Rg1 {[%emt 0:00:00]} ({But not} 28. Bxa6 $6 Ra8 29. Bd3 e5 $11) 28... a5 {[%emt 0:00:00]} 29. Rxg3 {[%emt 0:00:00]} Ke7 {[%emt 0:00:00]} 30. Bh5 {[%emt 0:00:00]} e5 {[%emt 0:00:00]} (30... f5 {was worth a try.} 31. Rh7 Kd6) 31. Rh7 {[%emt 0:00:00]} exf4 {[%emt 0:00:00]} 32. Rxf7+ {[%emt 0:00:00]} Ke6 {[%emt 0:00:00]} 33. Rg8 {[%emt 0:00:00]} Bd6 {[%emt 0:00:00]} 34. Rxb8 Bxb8 {[%emt 0:00:00][%mdl 4096] Endgame KRB-KB} 35. Rf8 {[%emt 0:00:00]} Bc7 {[%emt 0:00:00]} 36. Kd2 {[%emt 0:00:00]} Ke7 {[%emt 0:00:14]} (36... Be5 $16 37. b3 Bc6) 37. Rf7+ {[%emt 0:00:00]} Ke6 {[%emt 0:00:17]} 38. Rg7 {[%emt 0:00:00] And now Bg4+ would win.} Kd6 {[%emt 0:00:04]} 39. Bg4 {[%emt 0:00:00]} ({White should play} 39. Bf3 $18) 39... f5 {[%emt 0:00:46]} (39... Be8 $16 {was called for.} 40. Ke2 Bb6) 40. Bf3 {[%emt 0:00:00]} Be6 {[%emt 0:00:19]} 41. Kd3 {[%emt 0:00:00]} Bb6 {[%emt 0:00:13]} 42. Bh5 {[%emt 0:00:00] aiming for Bf7.} Bc5 $2 {[%emt 0:00:27]} (42... d4 43. Bf3 Bc5) 43. c3 {[%emt 0:00:00] Hoping for Bf7.} Bd7 {[%emt 0:00:02]} 44. Bf7 $4 {[%emt 0:00:38][%mdl 8192]} (44. Bf3 $18) 44... Bb5+ $19 {[%emt 0:00:08]} 45. Kd2 $2 {[%emt 0:00:57]} (45. Kc2 f3 46. Rg5) 45... Be3+ {[%emt 0:00:16]} 46. Kd1 {[%emt 0:00:22]} f3 {[%emt 0:00:03] ( -> ...f2)} 47. Bh5 {[%emt 0:01:20]} f2 {[%emt 0:00:01]} 48. Be2 {[%emt 0:00:01]} f1=Q+ {[%emt 0:00:02][%mdl 64] X-Ray Attack} 49. Bxf1 {[%emt 0:00:01]} Bxf1 {[%emt 0:00:01]} 50. b4 {[%emt 0:00:26]} axb4 {[%emt 0:00:06] Black mates.} 51. cxb4 {[%emt 0:00:02]} Bb5 {[%emt 0:00:58]} 52. Rb7 {[%emt 0:00:19]} Bc4 {[%emt 0:00:28]} 53. a4 {[%emt 0:00:04]} f4 {[%emt 0:00:06] Weighted Error Value: White=0.58/Black=0.25 (precise)} 0-1

[Event "14th BPB Limburg Open 2022"]
[Site "Maastricht"]
[Date "2022.06.03"]
[Round "1.9"]
[White "Roebers, Eline"]
[Black "Van Cappellen, Jonas"]
[Result "1/2-1/2"]
[ECO "B31"]
[WhiteElo "2369"]
[BlackElo "2208"]
[Annotator "TA"]
[PlyCount "50"]
[EventDate "2022.06.03"]
[EventType "swiss"]
[EventCountry "NED"]
[SourceTitle "playchess.com"]
[Source "ChessBase"]
[SourceQuality "1"]
[TimeControl "7200+15"]

{[%evp 16,50,12,-8,0,-24,-10,-22,-18,-52,-29,-52,-55,-58,-51,-45,-46,-61,-44,-47,-48,-43,0,0,0,-56,-60,-55,-58,-64,-2,-2,0,0,0,-2,0]} 1. e4 {[%emt 0:00:02]} c5 {[%emt 0:00:06]} 2. Nf3 {[%emt 0:00:03]} Nc6 {[%emt 0:00:08]} 3. Bb5 {[%emt 0:02:33]} g6 {[%emt 0:00:09]} 4. O-O {[%emt 0:00:04]} Bg7 {[%emt 0:00:07]} 5. c3 {[%emt 0:01:35]} Nf6 {[%emt 0:00:21]} 6. Re1 {[%emt 0:00:26]} O-O {[%emt 0:00:12]} 7. d4 {[%emt 0:02:45]} d5 $1 {[%emt 0:00:30][%mdl 4] outshines the older 7...cxd4.} 8. e5 {[%emt 0:01:24]} Ne4 {[%emt 0:00:08]} 9. h3 {[%emt 0:11:34]} Qb6 {[%emt 0:00:37] B31: Sicilian: 2...Nc6 3 Bb5 g6.} 10. Na3 {[%emt 0:06:51]} cxd4 {[%emt 0:03:19]} 11. cxd4 {[%emt 0:06:48]} Bf5 {[%emt 0:03:00] [#]} 12. Bd3 $146 {[%emt 0:17:22][%cal Bb5d3,Bd3f5,Bf5c2][%mdl 32]} ({Predecessor:} 12. Be3 Rac8 13. Re2 a6 14. Bxc6 Rxc6 15. Ne1 Qa5 16. Nac2 f6 17. Nd3 Rfc8 18. Ncb4 {½-½ (30) Tisdall,J (2420)-Gullaksen,E (2364) Oslo 2011}) 12... Rfd8 {[%emt 0:08:10]} (12... Rad8 $5 {[%cal Rc6d4]}) 13. Be3 {[%emt 0:14:30]} Qxb2 {[%emt 0:06:53]} 14. Nb5 {[%emt 0:00:28] [#]} Nd2 $1 {[%emt 0:15:47] Prevents Rb1.} 15. Bxf5 {[%emt 0:25:28]} Nxf3+ {[%emt 0:00:25]} (15... gxf5 $2 16. Qxd2 Qxb5 17. Bh6 $16) 16. Qxf3 {[%emt 0:03:46] Strongly threatening Reb1.} Qxb5 {[%emt 0:00:08]} 17. Bc2 {[%emt 0:00:55]} Qb2 {[%emt 0:13:54][%csl LRc2,LRd4]} 18. Qd1 {[%emt 0:01:38]} Rac8 {[%emt 0:01:13][%cal Oc6d4]} 19. Rb1 {[%emt 0:01:58]} Qxa2 {[%emt 0:02:37]} (19... Qc3 {seems wilder.} 20. Rb3 Qa5 21. Rxb7 e6) 20. Rxb7 {[%emt 0:04:34] [#]} ({Better is} 20. Ba4 $1 $11) 20... Nxe5 $1 $15 {[%emt 0:20:00]} 21. dxe5 {[%emt 0:08:21] Bb3 is the strong threat.} (21. Rxe7 Qxc2) 21... Qxc2 {[%emt 0:08:50]} ({Of course not} 21... Rxc2 22. Rxa7 Qc4 23. Rxe7 $14) 22. Rxe7 {[%emt 0:01:49]} Qxd1 {[%emt 0:12:11]} ({Black should try} 22... d4 $1 $15 23. Qf3 (23. Bxd4 $2 Kf8 $19) 23... Qb3) 23. Rxd1 $11 {[%emt 0:00:03] The position is equal.} Kf8 {[%emt 0:00:42]} 24. Rxa7 {[%emt 0:01:13]} Bxe5 {[%emt 0:01:32]} 25. Ra5 {[%emt 0:00:44]} Bf6 {[%emt 0:05:47] Weighted Error Value: White=0.17 (very precise) /Black=0.09 (flawless)} 1/2-1/2

[Event "14th BPB Limburg Open 2022"]
[Site "Maastricht"]
[Date "2022.06.03"]
[Round "1.10"]
[White "Bomans, Arno"]
[Black "Ondersteijn, Niels"]
[Result "1-0"]
[ECO "A45"]
[WhiteElo "2241"]
[BlackElo "2376"]
[Annotator "TA"]
[PlyCount "71"]
[EventDate "2022.06.03"]
[EventType "swiss"]
[EventCountry "NED"]
[SourceTitle "playchess.com"]
[Source "ChessBase"]
[SourceQuality "1"]
[TimeControl "7200+15"]

{[%evp 11,71,26,25,29,30,24,39,29,62,42,43,42,77,79,73,83,148,143,157,146,154,127,169,77,173,158,161,162,202,188,325,182,197,188,178,181,224,197,263,189,239,239,1587,1588,29989,280,1145,689,29983,29984,29990,29985,29987,1512,29981,29982,29976,927,1022,598,598,546]} 1. d4 {[%emt 0:00:03]} Nf6 {[%emt 0:00:06]} 2. Bg5 {[%emt 0:00:09]} c5 {[%emt 0:00:21]} 3. Bxf6 {[%emt 0:00:18]} gxf6 {[%emt 0:00:08]} 4. d5 {[%emt 0:00:05]} Qb6 {[%emt 0:00:45]} 5. Qc1 {[%emt 0:00:48]} f5 {[%emt 0:00:52]} 6. c4 {[%emt 0:02:02]} Bg7 {[%emt 0:00:27]} 7. Nc3 {[%emt 0:00:10] A45: Trompowsky Attack.} d6 {[%emt 0:02:48]} 8. e3 {[%emt 0:00:31]} Qa5 {[%emt 0:01:54] [#]} 9. Nf3 $146 {[%emt 0:02:39] White is slightly better.} ({Predecessor:} 9. Bd3 Nd7 10. Nf3 e6 11. O-O a6 12. e4 Bxc3 13. bxc3 fxe4 14. Bxe4 Nf6 15. Re1 {½-½ (40) Doric,D (2470)-Badev,K (2302) Zadar 2007}) 9... a6 {[%emt 0:09:16]} 10. Be2 {[%emt 0:06:56]} Nd7 {[%emt 0:09:10][%cal Ob7b5]} 11. O-O {[%emt 0:00:56]} Nf6 {[%emt 0:03:08]} 12. Qc2 {[%emt 0:00:34]} Bd7 {[%emt 0:12:11]} 13. Nh4 {[%emt 0:08:34]} b5 {[%emt 0:09:13]} (13... e6 $142) 14. Nxf5 $16 {[%emt 0:03:18] White is more active.} Bxf5 {[%emt 0:00:22]} 15. Qxf5 {[%emt 0:00:06][%cal Rc4b5]} bxc4 {[%emt 0:05:08]} 16. Bxc4 {[%emt 0:01:54]} Rb8 {[%emt 0:06:48]} 17. Rac1 {[%emt 0:08:55]} (17. Rab1 $18 {is more deadly.}) 17... h5 {[%emt 0:02:41]} (17... Rxb2 $16 18. Qc8+ Qd8 19. Qxa6 O-O) 18. Rc2 $18 {[%emt 0:15:16]} h4 {[%emt 0:05:37]} 19. Be2 {[%emt 0:00:27]} Nd7 {[%emt 0:06:27] [#]} 20. Ne4 $1 {[%emt 0:16:49]} Bxb2 {[%emt 0:17:25]} (20... Qb6 $142 21. Qg4 Bf6) 21. Ng5 {[%emt 0:08:31]} (21. Rb1 $142 Bg7 22. Rxb8+ Nxb8 23. Ng5) 21... Bf6 {[%emt 0:05:36] [#]} 22. Nxf7 {[%emt 0:02:12][%mdl 512]} Kxf7 {[%emt 0:00:11]} 23. Qxd7 {[%emt 0:00:39]} Rb4 {[%emt 0:00:45]} 24. Qf5 {[%emt 0:02:44] aiming for g4.} Qa4 {[%emt 0:01:37]} (24... Ke8 $142 25. Bg4 Qc7) 25. a3 {[%emt 0:04:55] Dancing on a razor blade.} ({Don't play} 25. Bd3 $6 Qe8 26. Bxa6 (26. a3 Ra4 $16) 26... Kg7 $16) 25... Re4 {[%emt 0:02:56]} (25... Qxa3 $142 26. Bh5+ (26. Bd3 Ke8 $16) 26... Kf8) 26. Bh5+ {[%emt 0:02:12]} ({But not} 26. Bd3 Re5 27. Qg6+ Kf8) 26... Kf8 $2 {[%emt 0:00:51]} (26... Rxh5 27. Qxh5+ Kg7) 27. Rb2 {[%emt 0:00:25] Threatening mate with Rb8+.} Rh6 {[%emt 0:00:58]} 28. Bd1 $2 {[%emt 0:10:54]} (28. Rb8+ {mates} Kg7 29. f4 Qd7 30. Qxd7 Rxh5 31. Qe8 Rxd5 32. f5 Rxf5 33. Rxf5) 28... Qc4 $2 {[%emt 0:03:56]} (28... Qe8 29. Qxe4 Bxb2 30. Qf4+ Kg7 31. Qg5+ Rg6 32. Qxh4 Rh6 33. Qg5+ Rg6) 29. Be2 {[%emt 0:00:46]} Qa4 {[%emt 0:00:12]} 30. Rb8+ {[%emt 0:00:17]} Kf7 {[%emt 0:02:15]} 31. Qc8 {[%emt 0:00:54][%csl Gb8][%cal Rc8g8]} Bg7 {[%emt 0:00:56]} 32. Bd1 {[%emt 0:03:11]} (32. f4 $142 Qd4 33. exd4 Rxe2 34. dxc5 h3 35. g3 Kf6 36. cxd6 Rh8 37. d7) 32... Qc4 {[%emt 0:00:45]} 33. Qf5+ {[%emt 0:03:11]} Bf6 {[%emt 0:01:38]} 34. Bb3 {[%emt 0:00:08]} (34. f4 $142 Kg7 35. Bh5 Rxf4 36. Rxf4 Rxh5 37. Qxh5 (37. Rxc4 Rxf5 38. Rb6 Bg5 $16) 37... Qc1+ 38. Rf1 Qxe3+ 39. Kh1) 34... Qd3 {[%emt 0:01:48]} 35. Rd1 {[%emt 0:00:26]} Rxe3 {[%emt 0:00:16] ( -> ...Qxd1+)} 36. Qxd3 {[%emt 0:00:23] Weighted Error Value: White=0.67/Black=0.97} (36. Rxd3 $2 Re1#) 1-0

[Event "14th BPB Limburg Open 2022"]
[Site "Maastricht"]
[Date "2022.06.03"]
[Round "1.11"]
[White "Kopylov, Michael"]
[Black "Grutter, Tim"]
[Result "0-1"]
[ECO "E62"]
[WhiteElo "2378"]
[BlackElo "2241"]
[Annotator "TA"]
[PlyCount "114"]
[EventDate "2022.06.03"]
[EventType "swiss"]
[EventCountry "NED"]
[SourceTitle "playchess.com"]
[Source "ChessBase"]
[SourceQuality "1"]
[TimeControl "7200+15"]

{[%evp 21,114,4,-4,-10,20,-19,0,4,0,0,44,46,73,55,62,54,55,63,45,56,59,52,88,75,75,70,77,90,70,67,57,13,4,15,4,5,8,4,8,7,15,9,58,7,7,10,5,5,8,8,8,8,8,3,7,8,8,0,29,18,25,12,14,0,0,-134,-136,-136,-136,-136,-108,-1457,-1445,-1117,-807,-5636,-5105,-5097,-5097,-5097,-5646,-7171,-6216,-29965,-29968,-29967,-29968,-29967,-29966,-29967,-29968,-29989,-29990,-29990,-29991]} 1. d4 {[%emt 0:00:04]} Nf6 {[%emt 0:00:07]} 2. c4 {[%emt 0:00:15]} g6 {[%emt 0:00:06]} 3. g3 {[%emt 0:00:20]} Bg7 {[%emt 0:00:06]} 4. Bg2 {[%emt 0:00:09]} O-O {[%emt 0:00:07]} 5. Nf3 {[%emt 0:00:12]} d6 {[%emt 0:00:12]} 6. O-O {[%emt 0:00:17]} Nc6 {[%emt 0:00:07]} 7. Nc3 {[%emt 0:00:22]} e5 {[%emt 0:00:26]} 8. d5 {[%emt 0:01:06]} Ne7 {[%emt 0:00:09]} 9. c5 {[%emt 0:00:18]} Ne8 {[%emt 0:02:43]} 10. cxd6 {[%emt 0:00:28]} Nxd6 {[%emt 0:00:12]} 11. e4 {[%emt 0:02:02]} c6 {[%emt 0:04:08]} 12. Re1 {[%emt 0:02:56] E62: King's Indian: Fianchetto: 6...c6 and Panno Variation (6...Nc6) without ...a6.} h6 {[%emt 0:10:10]} 13. Qb3 {[%emt 0:10:26] [#]} b6 $146 {[%emt 0:13:00]} ({Predecessor:} 13... Re8 14. h3 cxd5 15. exd5 Nef5 16. Be3 Nxe3 17. Rxe3 e4 18. Nd2 Bd4 19. Re2 e3 {0-1 (31) Kiss,A (2326)-Nurkic,S (2418) Kastav 2000}) 14. dxc6 {[%emt 0:11:56] The position is equal.} Nxc6 {[%emt 0:01:26]} 15. Rd1 {[%emt 0:00:17]} Qc7 {[%emt 0:16:31]} 16. Nd5 {[%emt 0:01:59]} Qb8 {[%emt 0:03:42]} 17. Be3 {[%emt 0:00:32]} Be6 {[%emt 0:08:53]} 18. Rac1 {[%emt 0:04:36]} Rc8 {[%emt 0:12:52]} 19. Qa4 {[%emt 0:03:34]} b5 $1 {[%emt 0:11:39]} 20. Qa6 {[%emt 0:26:13]} Nc4 $1 {[%emt 0:03:01]} 21. Bc5 {[%emt 0:02:45] And now b3 would win.} Bxd5 {[%emt 0:03:29]} 22. exd5 {[%emt 0:01:58]} Nd8 {[%emt 0:02:32][%cal Bc6d8,Bd8b7,Bb7d6,Bd6e4][%mdl 32] [#]} 23. b4 {[%emt 0:03:28] Strongly threatening Ne1.} Qb7 $1 {[%emt 0:01:58]} 24. Qxb7 {[%emt 0:02:00]} Nxb7 {[%emt 0:00:01]} 25. d6 {[%emt 0:02:51]} Ncxd6 $1 {[%emt 0:08:01][%cal Oe5e4]} 26. Bxd6 {[%emt 0:05:50] A strong pair of Bishops.} (26. Nd2 $5 {[%cal Rc5d6]}) 26... Rxc1 {[%emt 0:01:02]} 27. Rxc1 {[%emt 0:00:06]} Nxd6 {[%emt 0:00:03] [#]} 28. Nxe5 $1 {[%emt 0:01:07]} Re8 {[%emt 0:01:50]} 29. Nc6 {[%emt 0:00:50]} Re2 {[%emt 0:02:34]} 30. Rd1 {[%emt 0:06:14]} Bf8 {[%emt 0:01:12]} 31. Bd5 {[%emt 0:02:41]} Ne4 {[%emt 0:08:25]} (31... a6 $11 {feels stronger.}) 32. Rd3 {[%emt 0:08:37]} (32. Rd4 $1 $14 Nf6 33. Bb3) 32... Nxf2 $11 {[%emt 0:01:42]} 33. Rf3 {[%emt 0:00:10]} Nh3+ {[%emt 0:01:45]} 34. Kf1 {[%emt 0:00:55]} Rd2 {[%emt 0:00:19]} 35. Bxf7+ {[%emt 0:02:21]} Kg7 {[%emt 0:00:05]} 36. Bb3 {[%emt 0:00:50] Threatens to win with Rf7+.} Ng5 {[%emt 0:00:14] Against Rf7+} 37. Rf2 {[%emt 0:01:00]} Rd7 {[%emt 0:00:58]} 38. Rf4 {[%emt 0:04:16]} Rc7 {[%emt 0:01:23]} 39. Nd4 {[%emt 0:06:55]} Bd6 {[%emt 0:00:22]} 40. Rg4 {[%emt 0:01:23]} Rb7 {[%emt 0:00:46]} 41. h4 {[%emt 0:00:23]} Nf7 {[%emt 0:00:20]} 42. Nf5+ {[%emt 0:03:48]} Kf6 {[%emt 0:00:08]} 43. Bxf7 {[%emt 0:00:22]} (43. Nxd6 $11 Nxd6 44. Rd4) 43... Kxf5 $17 {[%emt 0:00:34]} 44. Bd5 {[%emt 0:01:06]} ({Avoid the trap} 44. Rxg6 $2 Rxf7 45. Rxh6 Bxg3 $19) 44... Kxg4 {[%emt 0:00:29]} 45. Bxb7 {[%emt 0:00:01]} Kxg3 {[%emt 0:00:24][%mdl 4096] Endgame KB-KB} 46. h5 {[%emt 0:00:20][%mdl 8192] This costs White the game.} (46. Be4 $17) 46... g5 $19 {[%emt 0:00:38][%cal Bg6g5,Bg5g4,Bg4g3,Bg3g2][%mdl 32] White must now prevent ...Kg4.} 47. Bc6 {[%emt 0:00:40]} Kh4 {[%emt 0:00:20]} 48. Bxb5 {[%emt 0:00:44]} Kxh5 {[%emt 0:00:05]} 49. Be2+ {[%emt 0:00:20]} Kh4 {[%emt 0:00:08]} 50. b5 {[%emt 0:00:21]} h5 {[%emt 0:00:28][%cal Bh6h5,Bh5h4,Bh4h3][%mdl 32]} 51. Kg2 {[%emt 0:00:05]} g4 {[%emt 0:00:09]} 52. a4 {[%emt 0:00:07]} Bc7 {[%emt 0:00:03] Black mates.} 53. Bc4 {[%emt 0:00:26]} Kg5 {[%emt 0:00:14]} 54. Be6 {[%emt 0:00:07]} h4 {[%emt 0:00:09]} 55. Bd7 {[%emt 0:00:06]} h3+ {[%emt 0:00:10]} 56. Kf2 {[%emt 0:00:36]} g3+ {[%emt 0:00:20]} 57. Kf3 {[%emt 0:00:10]} g2 {[%emt 0:00:08] Weighted Error Value: White=0.62/Black=0.05 (flawless)} 0-1